fUST/lending_fUST_20240111
["ID","MTS","AMOUNT","RATE_DAILY","PERIOD"]
[311162449,1704948646129,-500.0,0.0003041,2]
[311162450,1704948646140,-500.0,0.0003041,2]
[311162451,1704948646149,-500.0,0.0003041,2]
[311162452,1704948646159,-6467.16,0.0003041,2]
[311162453,1704948646169,-500.0,0.0003041,2]
[311162454,1704948646179,-500.0,0.0003041,2]
[311162455,1704948646189,-500.0,0.0003041,2]
[311162456,1704948646199,-2356.85,0.0003041,2]
[311162457,1704948646209,-3368.17,0.0003041,2]
[311162458,1704948646220,-500.0,0.0003041,2]
[311162459,1704948646230,-500.0,0.0003041,2]
[311162460,1704948646241,-500.0,0.0003041,2]
[311162461,1704948646251,-503.20019303,0.0003041,2]
[311162462,1704948646261,-1627.99,0.0003041,2]
[311162463,1704948646270,-500.0,0.0003041,2]
[311162464,1704948646280,-500.0,0.0003041,2]
[311162465,1704948646290,-1737.42,0.0003041,2]
[311162466,1704948646299,-504.58329312,0.0003041,2]
[311162467,1704948646310,-709.58,0.0003041,2]
[311162468,1704948646320,-500.0,0.0003041,2]
[311162469,1704948646330,-14687.03,0.0003041,2]
[311162470,1704948646339,-500.0,0.0003041,2]
[311162471,1704948646348,-173.39777827,0.0003041,2]
[311162472,1704948646358,-500.0,0.0003041,2]
[311162473,1704948646368,-166.92274785,0.00030413,7]
[311162474,1704948646378,-150.144,0.00030432,2]
[311162475,1704948646387,-153.0,0.00030466,2]
[311162476,1704948646396,-153.0,0.00030466,2]
[311162477,1704948646406,-153.0,0.00030466,2]
[311162478,1704948646415,-153.0,0.00030466,2]
[311162479,1704948646425,-153.0,0.00030466,2]
[311162480,1704948646435,-153.0,0.00030466,2]
[311162481,1704948646444,-153.0,0.00030466,2]
[311162482,1704948646453,-153.73462599,0.00030481,7]
[311162483,1704948646463,-158.272084,0.000305,2]
[311162484,1704948646472,-909.0,0.000305,2]
[311162485,1704948646482,-153.73462599,0.00030556,7]
[311162486,1704948646491,-620.00000319,0.00030561,2]
[311162487,1704948646500,-41971.68125325,0.00030581,7]
[311162488,1704948647056,-1377.21139882,0.00013497,2]
[311162489,1704948647099,-1502.29219542,0.00013497,2]
[311162490,1704948647111,-1909.91468362,0.00013497,2]
[311162491,1704948647120,-471.19712951,0.00013497,2]
[311162492,1704948647182,-722.97450307,0.00013497,2]
[311162493,1704948647260,1466.31228556,0.00010128,2]
[311162509,1704949446445,-245.0,0.00013093,2]
[311162510,1704949446531,-5.0,0.00013093,2]
[311162511,1704949582843,-2976.5355345,0.00013093,2]
[311162512,1704949582997,-60.74562315,0.00013093,2]
[311162513,1704949602776,-1984.357023,0.00013093,2]
[311162514,1704949602882,-40.4970821,0.00013093,2]
[311162515,1704949622849,-1653.6308525,0.00013093,2]
[311162516,1704949623061,-33.74756842,0.00013093,2]
[311162517,1704949642859,-861.54167415,0.00013093,2]
[311162518,1704949643140,-17.58248315,0.00013093,2]
[311162519,1704949658818,-861.54167415,0.00013093,2]
[311162520,1704949659136,-17.58248315,0.00013093,2]
[311162521,1704949674838,-861.54167415,0.00013093,2]
[311162522,1704949675009,-17.58248315,0.00013093,2]
[311162523,1704949692990,-861.54167415,0.00013093,2]
[311162524,1704949693291,-17.58248315,0.00013093,2]
[311162525,1704949715003,-861.54167415,0.00013093,2]
[311162526,1704949715191,-17.58248315,0.00013093,2]
[311162527,1704949730929,-861.54167415,0.00013093,2]
[311162528,1704949731095,-17.58248315,0.00013093,2]
[311162529,1704949739677,-12000.0,0.00013015,2]
[311162530,1704949739794,-11816.9487729,0.00013015,2]
[311162531,1704949753018,-861.54167415,0.00013093,2]
[311162532,1704949753265,-17.58248315,0.00013093,2]
[311162533,1704949761624,929.9795061,0.00012141,2]
[311162534,1704949776908,-861.54167415,0.00013093,2]
[311162535,1704949777027,-17.58248315,0.00013093,2]
[311162536,1704949792955,-861.54167415,0.00013093,2]
[311162537,1704949793072,-17.58248315,0.00013093,2]
[311162538,1704949807636,-157.18870053,0.00013093,2]
[311162539,1704949807663,-148.96241203,0.00013093,2]
[311162540,1704949807823,-6.24798189,0.00013093,2]
[311162541,1704949809231,299.90313067,0.00013093,2]
[311162542,1704949809260,306.15111256,0.00013093,2]
[311162543,1704949809872,-422.94467927,0.00013093,2]
[311162544,1704949809922,-8.63152407,0.00013093,2]
[311162545,1704949810646,414.3131552,0.00013093,2]
[311162546,1704949810674,422.94467927,0.00013093,2]
[311162547,1704949810701,41.86632283,0.00013093,2]
[311162548,1704949814175,-4676.3535458,0.00013093,2]
[311162549,1704949814370,-95.43578665,0.00013093,2]
[311162550,1704949814859,309.94425043,0.00013093,2]
[311162551,1704949818536,-3413.99395206,0.00012872,2]
[311162552,1704949818832,-69.67334596,0.00012872,2]
[311162553,1704949821697,-303.62445094,0.00013093,2]
[311162554,1704949821879,-6.19641737,0.00013093,2]
[311162555,1704949830986,-861.54167415,0.00013093,2]
[311162556,1704949831155,-17.58248315,0.00013093,2]
[311162592,1704949833929,-451.81472846,0.00013129,2]
[311162593,1704949833938,-155.05116689,0.0001313,2]
[311162594,1704949833947,-19663.58309656,0.0001313,2]
[311162595,1704949833957,-13694.49776337,0.0001313,2]
[311162596,1704949833966,-2035.15445086,0.0001313,2]
[311162597,1704949833975,-400.09836622,0.00013131,2]
[311162598,1704949833985,-2927.79076094,0.00013131,2]
[311162599,1704949833995,-4808.48011546,0.00013131,2]
[311162601,1704949834004,-947.80013116,0.00013132,2]
[311162602,1704949834014,-509.10030575,0.00013132,2]
[311162603,1704949834023,-521.06936744,0.00013132,2]
[311162604,1704949834031,-554.2709692,0.00013132,2]
[311162605,1704949834040,-253.60420254,0.00013133,2]
[311162606,1704949834049,-155.05116689,0.00013133,2]
[311162607,1704949834059,-466.77120588,0.00013134,2]
[311162608,1704949834068,-363.9579915,0.00013135,2]
[311162609,1704949834077,-1919.751069,0.00013135,2]
[311162610,1704949834086,-82528.18457841,0.00013137,2]
[311162611,1704949834095,-60608.67448261,0.00013142,2]
[311162612,1704949836307,-512.2955936,0.00013142,2]
[311162644,1704949838286,-759.01187369,0.00013129,2]
[311162646,1704949838295,-25310.98812641,0.00013142,2]
[311162648,1704949838307,-184355.89578554,0.00013142,2]
[311162650,1704949838316,-2070.70229933,0.00013155,2]
[311162652,1704949838325,-24900.0,0.0001316,2]
[311162654,1704949838335,-851.36761833,0.00013485,2]
[311162656,1704949838344,-976.18563318,0.00013491,2]
[311162658,1704949838354,-160.23214209,0.00013504,2]
[311162660,1704949838363,-1974.7858374,0.00013699,2]
[311162662,1704949838373,-498.807155,0.00013699,2]
[311162664,1704949838383,-400.61500129,0.000149,2]
[311162666,1704949838393,-360.49236651,0.00015,2]
[311162669,1704949838402,-1000.0,0.00015,2]
[311162672,1704949838412,-164.08761243,0.00016901,2]
[311162674,1704949838421,-169.64303044,0.00016901,2]
[311162676,1704949838430,-184.47920681,0.00016901,2]
[311162678,1704949838440,-309.97210316,0.00016901,2]
[311162680,1704949838451,-444.41920813,0.00016901,2]
[311162682,1704949838460,-728.1894664,0.00016901,2]
[311162684,1704949838469,-368.32099485,0.00016901,2]
[311162686,1704949838479,-184.54495661,0.00016901,2]
[311162688,1704949838488,-5587.25018258,0.00016901,2]
[311162690,1704949838498,-177.3925437,0.00016901,2]
[311162692,1704949838507,-279.69467467,0.00016901,2]
[311162694,1704949838518,-1592.6986975,0.00016901,2]
[311162696,1704949838527,-226.93304079,0.00016901,2]
[311162698,1704949838536,-265.66183442,0.00016901,2]
[311162700,1704949838546,-260.04621447,0.00016901,2]
[311162702,1704949838555,-222.06298067,0.00016902,2]
[311162704,1704949838565,-213.62341382,0.00016902,2]
[311162706,1704949838574,-156.78990139,0.00016902,2]
[311162708,1704949838583,-872.72571525,0.00017235,2]
[311162710,1704949838592,-246.10686283,0.000178,2]
[311162712,1704949838601,-1578.97802722,0.00019,2]
[311162714,1704949838610,-160.177843,0.00019178,2]
[311162716,1704949838619,-171.737941,0.00019178,2]
[311162718,1704949838628,-1112.22182837,0.000195,2]
[311162720,1704949838638,-300.0,0.0002,2]
[311162721,1704949838647,-2079.89647566,0.0002,2]
[311162723,1704949838657,-200.0,0.0002,2]
[311162726,1704949838667,-2130.59703965,0.0002,5]
[311162727,1704949838676,-1476.18263852,0.0002,2]
[311162729,1704949838686,-236.97375297,0.0002,2]
[311162731,1704949838696,-266.37190097,0.0002,2]
[311162733,1704949838705,-1195.27282006,0.0002,2]
[311162736,1704949838715,-155.07443573,0.0002,2]
[311162737,1704949838725,-853.72221584,0.0002,2]
[311162739,1704949838734,-155.07443573,0.0002,2]
[311162741,1704949838744,-677.0708176,0.0002,2]
[311162743,1704949838754,-665.38112702,0.0002,2]
[311162745,1704949838764,-593.96547105,0.00020545,2]
[311162747,1704949838774,-498.807155,0.00020548,2]
[311162749,1704949838785,-1822.05331204,0.00021,2]
[311162751,1704949838795,-232.56616313,0.00021,2]
[311162753,1704949838804,-21896.11056994,0.00021,2]
[311162755,1704949838813,-17945.36171299,0.00021,2]
[311162757,1704949838823,-1546.81985246,0.00021,2]
[311162759,1704949838834,-193.97785315,0.00021,2]
[311162761,1704949838844,-326.7917286,0.00021,2]
[311162763,1704949838853,-166.666666,0.00021918,2]
[311162765,1704949838863,-4918.87947459,0.00022,2]
[311162767,1704949838874,-156.88951629,0.00022,2]
[311162769,1704949838885,-156.43500893,0.00022,2]
[311162771,1704949838894,-166.666666,0.00022431,2]
[311162773,1704949838904,-166.666666,0.00022944,2]
[311162775,1704949838915,-2093.45221107,0.00023,2]
[311162777,1704949838925,-9923.17263833,0.00023,2]
[311162779,1704949838935,-465.14061053,0.00023288,2]
[311162781,1704949838945,-166.666666,0.00023456,2]
[311162783,1704949838957,-166.666666,0.00023969,2]
[311162786,1704949838968,-614.12133667,0.00024,2]
[311162788,1704949838977,-166.666666,0.00024482,2]
[311162789,1704949838987,-687.75702701,0.000247,2]
[311162792,1704949838997,-4711.91259146,0.00025,2]
[311162793,1704949839007,-7193.15698043,0.00025297,2]
[311162795,1704949839017,-240.7469676,0.00026,2]
[311162798,1704949839028,-525.99300196,0.00026,2]
[311162800,1704949839037,-620.01274446,0.000264,2]
[311162802,1704949839048,-2293.60196635,0.00026837,2]
[311162804,1704949839058,-3314.01740452,0.00027,2]
[311162805,1704949839068,-733.338016,0.00027,2]
[311162807,1704949839078,-3103.68658514,0.00027197,2]
[311162810,1704949839090,-9100.04106185,0.000273,4]
[311162812,1704949839101,-15877.13272686,0.00027396,2]
[311162813,1704949839111,-155.0,0.00027397,2]
[311162815,1704949839121,-501.00894022,0.000274,2]
[311162817,1704949839131,-34815.28968525,0.000275,2]
[311162820,1704949839142,-620.00063722,0.0002772,2]
[311162821,1704949839152,-305.07101819,0.00028,2]
[311162823,1704949839163,-3653.27371821,0.0002831,2]
[311162825,1704949839173,-155.0,0.00028767,2]
[311162827,1704949839183,-89124.07237147,0.000288,2]
[311162829,1704949839194,-500.0,0.00028998,4]
[311162832,1704949839205,-500.0,0.00028998,4]
[311162833,1704949839215,-476.22449285,0.00028998,4]
[311162835,1704949839225,-426.2336021,0.00028998,4]
[311162837,1704949839236,-268.6869823,0.00028998,4]
[311162840,1704949839247,-500.0,0.00028998,4]
[311162841,1704949839256,-337.9120652,0.00028998,4]
[311162843,1704949839267,-500.0,0.00028998,4]
[311162845,1704949839278,-500.0,0.00028998,4]
[311162847,1704949839289,-647.93032513,0.00028998,4]
[311162849,1704949839299,-500.0,0.00028998,4]
[311162851,1704949839310,-500.0,0.00028998,4]
[311162853,1704949839319,-419.55359402,0.00028998,4]
[311162856,1704949839330,-281.99,0.00028999,2]
[311162857,1704949839342,-281.99,0.00028999,2]
[311162859,1704949839353,-281.99,0.00028999,2]
[311162861,1704949839364,-281.99,0.00028999,2]
[311162864,1704949839375,-281.99,0.00028999,2]
[311162865,1704949839384,-281.99,0.00028999,2]
[311162867,1704949839394,-281.99,0.00028999,2]
[311162869,1704949839405,-281.99,0.00028999,2]
[311162871,1704949839416,-281.99,0.00028999,2]
[311162873,1704949839427,-281.99,0.00028999,2]
[311162875,1704949839436,-155.0294556,0.00029,2]
[311162877,1704949839445,-1983.449916,0.00029,2]
[311162879,1704949839454,-79469.02841882,0.00029,2]
[311162881,1704949839464,-97929.36509555,0.00029,3]
[311162883,1704949839474,-1516.401694,0.00029,2]
[311162885,1704949839483,-620.00003186,0.00029106,2]
[311162887,1704949839492,-500.50773113,0.00029148,5]
[311162889,1704949839501,-11977.79692606,0.00029183,3]
[311162891,1704949839511,-1917.26371473,0.00029193,3]
[311162893,1704949839520,-5722.48677451,0.00029193,3]
[311162895,1704949839529,-1703.28476384,0.00029193,3]
[311162897,1704949839538,-153.73462599,0.00029577,2]
[311162899,1704949839547,-152.31502045,0.00029738,2]
[311162901,1704949839556,-265235.05015517,0.0002979,7]
[311162903,1704949839569,-10202.84952288,0.0002979,7]
[311162906,1704949839581,-59348.23103532,0.0002979,7]
[311162908,1704949839590,-8088.26925045,0.00029821,2]
[311162909,1704949839599,-20903.83258642,0.000299,2]
[311162911,1704949839608,-153.0,0.00029918,2]
[311162913,1704949839617,-153.0,0.00029918,2]
[311162914,1704949839626,-153.73462599,0.00029933,2]
[311162915,1704949839635,-10623.80376589,0.00029974,2]
[311162916,1704949839644,-155.0294556,0.0003,2]
[311162917,1704949839653,-282.67247261,0.0003,3]
[311162918,1704949839662,-165.5787116,0.0003,7]
[311162919,1704949839671,-2800.0,0.0003,2]
[311162920,1704949839680,-6975.26133049,0.0003,4]
[311162921,1704949839689,-899.90173962,0.0003,2]
[311162922,1704949839698,-463.46661998,0.0003,4]
[311162923,1704949839707,-760.83645232,0.0003,2]
[311162924,1704949839716,-6183.76397391,0.0003,2]
[311162925,1704949839725,-2188.79308094,0.0003,2]
[311162926,1704949839734,-222906.78947165,0.0003,2]
[311162927,1704949839743,-19251.12813979,0.0003,3]
[311162928,1704949839752,-8035.64264101,0.0003,14]
[311162929,1704949839763,-32782.31038208,0.0003,10]
[311162930,1704949839773,-18553.45565274,0.0003,2]
[311162931,1704949839783,-698.89862508,0.0003,2]
[311162932,1704949839792,-686.8051383,0.0003,4]
[311162933,1704949839801,-15040.88068289,0.0003,4]
[311162934,1704949839812,-1554.3169407,0.0003,4]
[311162935,1704949839822,-200.0,0.0003,4]
[311162936,1704949839831,-1500.0,0.0003,2]
[311162937,1704949839841,-11908.01427053,0.0003,5]
[311162938,1704949839851,-639.80669723,0.0003,4]
[311162939,1704949839862,-1200.0,0.0003,4]
[311162940,1704949839873,-155.18046676,0.0003,4]
[311162941,1704949839882,-686.8051383,0.0003,4]
[311162942,1704949839891,-168.0,0.0003,2]
[311162943,1704949839900,-153.0,0.00030096,2]
[311162944,1704949839909,-153.1901322,0.00030096,2]
[311162945,1704949839918,-153.0,0.00030096,2]
[311162946,1704949839928,-197.37626976,0.0003013,2]
[311162947,1704949839939,-1293.81019542,0.00030134,4]
[311162948,1704949839951,-1030.35167796,0.00030134,4]
[311162949,1704949839959,-4871.40336818,0.00030135,2]
[311162950,1704949839969,-1119.18301187,0.00030135,2]
[311162951,1704949839978,-285.67741127,0.00030135,4]
[311162952,1704949839987,-500.0,0.00030136,2]
[311162953,1704949839997,-500.0,0.00030136,2]
[311162954,1704949840007,-500.0,0.00030136,2]
[311162955,1704949840016,-500.0,0.00030136,2]
[311162956,1704949840026,-500.0,0.00030136,2]
[311162957,1704949840034,-500.25239641,0.00030136,2]
[311162958,1704949840043,-500.0,0.00030136,2]
[311162959,1704949840052,-500.0,0.00030136,2]
[311162960,1704949840061,-500.0,0.00030136,2]
[311162961,1704949840070,-500.0,0.00030136,2]
[311162962,1704949840079,-500.0,0.00030136,2]
[311162963,1704949840087,-500.0,0.00030136,2]
[311162964,1704949840097,-500.0,0.00030136,2]
[311162965,1704949840106,-500.0,0.00030136,2]
[311162966,1704949840116,-500.0,0.00030136,2]
[311162967,1704949840125,-500.0,0.00030136,2]
[311162968,1704949840135,-500.0,0.00030136,2]
[311162969,1704949840144,-500.0,0.00030136,2]
[311162970,1704949840153,-573.20229012,0.00030136,2]
[311162971,1704949840162,-500.0,0.00030136,2]
[311162972,1704949840171,-959.45,0.00030136,2]
[311162973,1704949840180,-500.0,0.00030136,2]
[311162974,1704949840189,-500.0,0.00030136,2]
[311162975,1704949840197,-500.0,0.00030136,2]
[311162976,1704949840207,-500.0,0.00030136,2]
[311162977,1704949840216,-257.42195307,0.00030136,2]
[311162979,1704949840224,-500.0,0.00030136,2]
[311162981,1704949840233,-384.12539335,0.00030136,2]
[311162983,1704949840241,-588.93005954,0.00030136,2]
[311162985,1704949840250,-500.40558924,0.00030136,2]
[311162986,1704949840259,-500.0,0.00030136,2]
[311162988,1704949840269,-500.0,0.00030136,2]
[311162990,1704949840278,-500.0,0.00030136,2]
[311162991,1704949840287,-301.39905633,0.00030136,2]
[311162992,1704949840296,-500.0,0.00030136,2]
[311162993,1704949840305,-156.25447643,0.00030136,2]
[311162994,1704949840314,-508.88550191,0.00030136,2]
[311162995,1704949840323,-500.55430526,0.00030136,2]
[311162996,1704949840332,-515.83616161,0.00030136,2]
[311162997,1704949840342,-500.0,0.00030136,2]
[311162998,1704949840351,-500.0,0.00030136,2]
[311162999,1704949840360,-500.0,0.00030136,2]
[311163001,1704949840370,-500.0,0.00030136,2]
[311163003,1704949840379,-505.37692655,0.00030136,2]
[311163005,1704949840388,-504.99644365,0.00030136,30]
[311163007,1704949840397,-500.0,0.00030136,2]
[311163008,1704949840406,-509.94278174,0.00030136,2]
[311163010,1704949840415,-509.38199583,0.00030136,2]
[311163012,1704949840424,-500.0,0.00030136,2]
[311163014,1704949840433,-614.64769916,0.00030136,2]
[311163016,1704949840442,-504.7252435,0.00030136,2]
[311163018,1704949840451,-501.25420699,0.00030136,2]
[311163019,1704949840461,-500.0,0.00030136,2]
[311163020,1704949840470,-500.0,0.00030136,2]
[311163021,1704949840480,-500.0,0.00030136,2]
[311163022,1704949840489,-500.0,0.00030136,2]
[311163023,1704949840498,-767.34,0.00030136,2]
[311163024,1704949840601,-502.09711386,0.00030136,2]
[311163025,1704949840610,-522.97859531,0.00030136,2]
[311163026,1704949840620,-502.13282351,0.00030136,2]
[311163027,1704949840630,-500.0,0.00030136,2]
[311163028,1704949840639,-500.0,0.00030136,2]
[311163029,1704949840649,-500.0,0.00030136,2]
[311163030,1704949840658,-500.0,0.00030136,2]
[311163031,1704949840669,-505.13877686,0.00030136,2]
[311163032,1704949840678,-500.0,0.00030136,2]
[311163033,1704949840689,-500.0,0.00030136,2]
[311163034,1704949840698,-500.0,0.00030136,2]
[311163035,1704949840707,-500.0,0.00030136,2]
[311163036,1704949840716,-500.0,0.00030136,2]
[311163037,1704949840726,-500.0,0.00030136,2]
[311163038,1704949840735,-500.86129898,0.00030136,2]
[311163039,1704949840745,-448.03715962,0.00030136,2]
[311163040,1704949840754,-500.0,0.00030136,2]
[311163041,1704949840764,-500.0,0.00030136,2]
[311163042,1704949840774,-412.25216866,0.00030136,2]
[311163043,1704949840783,-593.4206134,0.00030136,2]
[311163044,1704949840792,-500.81343408,0.00030136,2]
[311163045,1704949840801,-500.20971053,0.00030136,2]
[311163046,1704949840811,-500.0,0.00030136,2]
[311163047,1704949840820,-500.0,0.00030136,2]
[311163048,1704949840829,-500.0,0.00030136,2]
[311163049,1704949840839,-500.0,0.00030136,2]
[311163050,1704949840848,-1661.91,0.00030136,2]
[311163051,1704949840858,-500.0,0.00030136,2]
[311163052,1704949840868,-500.0,0.00030136,2]
[311163053,1704949840877,-501.07299609,0.00030136,2]
[311163054,1704949840886,-500.0,0.00030136,2]
[311163055,1704949840896,-500.0,0.00030136,2]
[311163056,1704949840905,-500.0,0.00030136,2]
[311163057,1704949840915,-500.0,0.00030136,2]
[311163058,1704949840924,-500.0,0.00030136,2]
[311163059,1704949840934,-500.0,0.00030136,2]
[311163060,1704949840944,-500.0,0.00030136,2]
[311163061,1704949840954,-500.0,0.00030136,2]
[311163063,1704949840964,-500.0,0.00030136,2]
[311163065,1704949840972,-500.0,0.00030136,2]
[311163067,1704949840981,-500.0,0.00030136,2]
[311163069,1704949840992,-500.0,0.00030136,2]
[311163071,1704949841001,-500.0,0.00030136,2]
[311163073,1704949841010,-500.0,0.00030136,2]
[311163075,1704949841019,-500.0,0.00030136,2]
[311163077,1704949841030,-500.0,0.00030136,2]
[311163079,1704949841039,-500.0,0.00030136,2]
[311163081,1704949841047,-500.0,0.00030136,2]
[311163083,1704949841056,-500.0,0.00030136,2]
[311163085,1704949841065,-500.0,0.00030136,2]
[311163087,1704949841073,-500.0,0.00030136,2]
[311163088,1704949841082,-500.0,0.00030136,2]
[311163090,1704949841091,-500.0,0.00030136,2]
[311163092,1704949841100,-500.0,0.00030136,2]
[311163094,1704949841109,-500.0,0.00030136,2]
[311163096,1704949841118,-500.0,0.00030136,2]
[311163097,1704949841128,-289.88041336,0.00030136,2]
[311163098,1704949841137,-500.0,0.00030136,2]
[311163099,1704949841146,-500.0,0.00030136,2]
[311163100,1704949841155,-500.0,0.00030136,2]
[311163101,1704949841164,-500.0,0.00030136,2]
[311163102,1704949841174,-500.0,0.00030136,2]
[311163103,1704949841182,-500.0,0.00030136,2]
[311163104,1704949841191,-500.0,0.00030136,2]
[311163105,1704949841200,-500.0,0.00030136,2]
[311163106,1704949841209,-500.0,0.00030136,2]
[311163107,1704949841219,-500.0,0.00030136,2]
[311163108,1704949841228,-500.0,0.00030136,2]
[311163109,1704949841237,-500.0,0.00030136,2]
[311163110,1704949841248,-200.0,0.00030136,2]
[311163111,1704949841257,-474.98127692,0.00030136,2]
[311163113,1704949841267,-500.0,0.00030136,2]
[311163115,1704949841277,-594.76805938,0.00030136,2]
[311163116,1704949841287,-500.0,0.00030136,2]
[311163118,1704949841297,-500.0,0.00030136,2]
[311163120,1704949841308,-500.0,0.00030136,2]
[311163121,1704949841317,-500.0,0.00030136,2]
[311163123,1704949841328,-500.0,0.00030136,2]
[311163124,1704949841340,-500.0,0.00030136,2]
[311163125,1704949841350,-500.0,0.00030136,2]
[311163126,1704949841359,-500.0,0.00030136,2]
[311163127,1704949841368,-500.0,0.00030136,2]
[311163128,1704949841379,-500.0,0.00030136,2]
[311163129,1704949841388,-500.0,0.00030136,2]
[311163130,1704949841397,-186.76567446,0.00030136,2]
[311163131,1704949841407,-500.0,0.00030136,2]
[311163132,1704949841416,-500.0,0.00030136,2]
[311163133,1704949841425,-500.0,0.00030136,2]
[311163134,1704949841434,-552.32,0.00030136,2]
[311163135,1704949841444,-500.0,0.00030136,2]
[311163136,1704949841453,-500.0,0.00030136,2]
[311163137,1704949841462,-502.0635084,0.00030136,2]
[311163138,1704949841472,-500.0,0.00030136,2]
[311163140,1704949841481,-500.0,0.00030136,2]
[311163142,1704949841491,-418.33957218,0.00030136,2]
[311163144,1704949841501,-498.4439831,0.00030136,2]
[311163146,1704949841510,-500.0,0.00030136,2]
[311163147,1704949841519,-642.73342,0.00030136,2]
[311163148,1704949841531,-500.0,0.00030136,2]
[311163149,1704949841540,-500.0,0.00030136,2]
[311163150,1704949841552,-501.28748838,0.00030136,2]
[311163151,1704949841561,-500.0,0.00030136,2]
[311163152,1704949841570,-500.0,0.00030136,2]
[311163153,1704949841579,-500.0,0.00030136,2]
[311163154,1704949841589,-500.0,0.00030136,2]
[311163155,1704949841599,-500.0,0.00030136,2]
[311163156,1704949841608,-500.0,0.00030136,2]
[311163157,1704949841618,-500.0,0.00030136,2]
[311163158,1704949841628,-527.99,0.00030136,2]
[311163159,1704949841637,-345.71155924,0.00030136,2]
[311163160,1704949841647,-1145.48,0.00030136,2]
[311163161,1704949841657,-500.0,0.00030136,2]
[311163162,1704949841667,-500.0,0.00030136,2]
[311163163,1704949841677,-500.0,0.00030136,2]
[311163164,1704949841687,-500.0,0.00030136,2]
[311163165,1704949841696,-500.0,0.00030136,2]
[311163166,1704949841706,-500.0,0.00030136,2]
[311163167,1704949841715,-500.0,0.00030136,2]
[311163168,1704949841725,-1011.98987962,0.00030136,5]
[311163169,1704949841735,-500.0,0.00030136,2]
[311163170,1704949841745,-203.6129773,0.00030136,2]
[311163171,1704949841755,-500.0,0.00030136,2]
[311163172,1704949841766,-500.0,0.00030136,2]
[311163173,1704949841777,-500.0,0.00030136,2]
[311163174,1704949841786,-780.0,0.00030136,2]
[311163175,1704949841797,-500.0,0.00030136,2]
[311163176,1704949841807,-506.61528026,0.00030136,2]
[311163177,1704949841816,-500.0,0.00030136,2]
[311163178,1704949841827,-500.0,0.00030136,2]
[311163179,1704949841838,-500.0,0.00030136,2]
[311163180,1704949841849,-622.22,0.00030136,2]
[311163181,1704949841859,-500.0,0.00030136,2]
[311163182,1704949841870,-471.58118241,0.00030136,2]
[311163183,1704949841880,-508.19728668,0.00030136,2]
[311163184,1704949841891,-500.0,0.00030136,2]
[311163185,1704949841901,-505.8736009,0.00030136,2]
[311163186,1704949841912,-526.31638837,0.00030136,2]
[311163187,1704949841921,-500.0,0.00030136,2]
[311163188,1704949841930,-500.0,0.00030136,2]
[311163189,1704949841939,-500.0,0.00030136,2]
[311163190,1704949841948,-502.87918965,0.00030136,2]
[311163191,1704949841958,-504.14164348,0.00030136,2]
[311163192,1704949841967,-500.0,0.00030136,2]
[311163193,1704949841976,-500.0,0.00030136,2]
[311163194,1704949841985,-500.0,0.00030136,2]
[311163195,1704949841994,-518.15706842,0.00030136,2]
[311163196,1704949842003,-500.0,0.00030136,2]
[311163197,1704949842012,-500.0,0.00030136,2]
[311163198,1704949842021,-559.53,0.00030136,2]
[311163199,1704949842032,-500.0,0.00030136,2]
[311163200,1704949842043,-500.0,0.00030136,2]
[311163201,1704949842053,-500.0,0.00030136,2]
[311163202,1704949842065,-500.0,0.00030136,2]
[311163203,1704949842075,-500.0,0.00030136,2]
[311163204,1704949842085,-500.0,0.00030136,2]
[311163205,1704949842096,-500.0,0.00030136,2]
[311163206,1704949842106,-744.51,0.00030136,2]